bitfinex-derivatives/quotes_BTCF0:USTF0_20250510
["timestamp","ask_amount","ask_price","bid_price","bid_amount"]
[1746855217472,0.82496323,103210.0,103200.0,0.16553905]
[1746855217768,0.88556323,103210.0,103200.0,0.14530419]
[1746855218565,0.88756323,103210.0,103200.0,0.14630419]
[1746855220073,0.88756323,103210.0,103200.0,0.14730419]
[1746855220569,1.19904412,103210.0,103200.0,0.14730419]
[1746855220971,1.20204412,103210.0,103200.0,0.14630419]
[1746855221174,1.20930412,103210.0,103200.0,0.17830419]
[1746855225180,1.06135845,103210.0,103200.0,0.17830419]
[1746855226371,0.70055845,103210.0,103200.0,0.17830419]
[1746855226572,1.42215845,103210.0,103200.0,0.17830419]
[1746855227881,1.37486512,103210.0,103200.0,0.17830419]
[1746855228073,1.42215845,103210.0,103200.0,0.17830419]
[1746855237392,1.35724831,103210.0,103200.0,0.17830419]
[1746855239197,1.35724831,103210.0,103200.0,0.34430419]
[1746855240192,1.35724831,103210.0,103200.0,0.17830419]
[1746855241301,1.25862323,103210.0,103200.0,0.17830419]
[1746855243194,1.20903866,103210.0,103180.0,0.11708]
[1746855243395,0.69881163,103190.0,103180.0,0.14818]
[1746855243602,0.79572343,103190.0,103180.0,0.14818]
[1746855243901,0.85942343,103190.0,103180.0,0.24508391]
[1746855244102,0.85942343,103190.0,103180.0,0.41108391]
[1746855244305,0.85942343,103190.0,103180.0,0.29400391]
[1746855244502,0.92072343,103190.0,103180.0,0.42526656]
[1746855244690,1.28152343,103190.0,103180.0,0.42526656]
[1746855244889,1.28252343,103190.0,103180.0,0.27908656]
[1746855245094,1.28252343,103190.0,103180.0,0.11308656]
[1746855245294,1.28252343,103190.0,103180.0,0.14418656]
[1746855245503,1.28252343,103190.0,103180.0,0.14518656]
[1746855246302,1.46252343,103190.0,103180.0,0.01718265]
[1746855246602,1.50981676,103190.0,103180.0,5e-08]
[1746855246800,1.62689676,103190.0,103180.0,5e-08]
[1746855247101,1.79289676,103190.0,103180.0,5e-08]
[1746855247792,0.1938263,103180.0,103170.0,0.00397383]
[1746855247989,1.22859296,103180.0,103170.0,0.00397383]
[1746855249000,1.22859296,103180.0,103170.0,0.00697383]
[1746855251201,1.22959296,103180.0,103170.0,0.00797383]
[1746855252306,0.86879296,103180.0,103170.0,0.00797383]
[1746855252507,1.59039296,103180.0,103170.0,0.00797383]
[1746855252802,1.68908019,103180.0,103170.0,0.00797383]
[1746855256306,1.68908019,103180.0,103170.0,0.03887383]
[1746855256903,1.68908019,103180.0,103170.0,0.05376098]
[1746855261412,0.96748019,103180.0,103170.0,0.05376098]
[1746855261614,1.68908019,103180.0,103170.0,0.05376098]
[1746855263117,1.85508019,103180.0,103170.0,0.05376098]
[1746855264115,1.68908019,103180.0,103170.0,0.05376098]
[1746855267312,1.56275353,103180.0,103170.0,0.05376098]
[1746855267611,1.24004686,103180.0,103170.0,0.21428368]
[1746855268322,1.09290686,103180.0,103170.0,0.38028368]
[1746855269119,1.2164001,103180.0,103170.0,0.38028368]
[1746855269322,1.13860677,103180.0,103170.0,0.73854211]
[1746855269721,0.41700677,103180.0,103170.0,0.73854211]
[1746855270722,0.41700677,103180.0,103170.0,0.69124878]
[1746855272824,0.1948263,103180.0,103170.0,0.69124878]
[1746855275325,0.1948263,103180.0,103170.0,0.73854211]
[1746855277726,0.1948263,103180.0,103170.0,1.09934211]
[1746855278428,0.001,103180.0,103170.0,1.49355944]
[1746855278728,0.1948263,103180.0,103170.0,1.49355944]
[1746855279028,0.1948263,103180.0,103170.0,1.44626611]
[1746855279828,0.26868312,103180.0,103170.0,1.44626611]
[1746855280031,0.27594312,103180.0,103170.0,1.44626611]
[1746855280528,0.27594312,103180.0,103170.0,2.60682611]
[1746855282327,0.08211682,103180.0,103170.0,2.60682611]
[1746855282532,0.09868723,103190.0,103180.0,0.1938263]
[1746855282735,0.29249473,103190.0,103180.0,0.86091296]
[1746855282925,0.29249473,103190.0,103180.0,1.20782496]
[1746855283126,0.1938075,103190.0,103180.0,1.47074766]
[1746855284231,0.1948075,103190.0,103180.0,1.47174766]
[1746855284730,0.1948075,103190.0,103180.0,1.47274766]
[1746855285135,0.1948075,103190.0,103180.0,1.83354766]
[1746855285430,0.1948075,103190.0,103180.0,1.58354766]
[1746855289532,0.1948075,103190.0,103180.0,1.48663566]
[1746855289730,0.2275075,103190.0,103180.0,1.48663566]
[1746855292640,0.0337,103190.0,103180.0,1.48663566]
[1746855292827,0.001,103190.0,103180.0,1.48663566]
[1746855293220,0.0332,103190.0,103180.0,1.48663566]
[1746855293425,0.2270075,103190.0,103180.0,1.48663566]
[1746855294336,0.0332,103190.0,103180.0,1.48663566]
[1746855294535,0.001,103190.0,103180.0,1.58354766]
[1746855295836,0.001,103190.0,103180.0,1.58654766]
[1746855297233,0.03946,103200.0,103190.0,0.1938075]
[1746855297537,0.03946,103200.0,103190.0,0.81500083]
[1746855297839,0.03946,103200.0,103190.0,0.91190474]
[1746855298035,0.06976,103200.0,103190.0,0.91190474]
[1746855298236,0.06976,103200.0,103190.0,1.07790474]
[1746855298435,0.06976,103200.0,103190.0,1.07990474]
[1746855298635,0.07076,103200.0,103190.0,1.08190474]
[1746855299839,0.34234296,103220.0,103210.0,0.1937699]
[1746855300135,0.40554296,103220.0,103210.0,0.64094323]
[1746855300338,0.16334146,103220.0,103210.0,1.06434323]
[1746855300535,0.13044146,103220.0,103210.0,1.19344714]
[1746855301043,0.13044146,103220.0,103210.0,1.20309145]
[1746855301341,0.13244146,103220.0,103210.0,1.20409145]
[1746855301732,0.13344146,103220.0,103210.0,1.20409145]
[1746855302242,0.13244146,103220.0,103210.0,1.20609145]
[1746855302841,0.13144146,103220.0,103210.0,1.20809145]
[1746855303037,0.16344146,103220.0,103210.0,1.20809145]
[1746855303434,0.35719266,103220.0,103210.0,1.20809145]
[1746855303634,0.39039266,103220.0,103210.0,1.20809145]
[1746855304745,0.19664146,103220.0,103210.0,1.20809145]
[1746855306146,0.09795423,103220.0,103210.0,1.20809145]
[1746855306744,0.06475423,103220.0,103210.0,2.41558478]
[1746855306945,0.00726,103230.0,103220.0,0.1937512]
[1746855307139,0.00726,103230.0,103220.0,0.55213786]
[1746855307339,0.03886,103230.0,103220.0,0.64901385]
[1746855307640,0.03886,103230.0,103220.0,0.649023]
[1746855308944,0.03986,103230.0,103220.0,0.649023]
[1746855310848,0.07026,103230.0,103220.0,0.649023]
[1746855312743,0.07026,103230.0,103220.0,1.009823]
[1746855313544,0.0306,103240.0,103230.0,0.1937324]
[1746855313737,0.0306,103240.0,103230.0,0.97727906]
[1746855313942,0.32568213,103250.0,103240.0,0.1937136]
[1746855314146,0.35628213,103250.0,103240.0,0.74350026]
[1746855314645,0.35628213,103250.0,103240.0,0.84036663]
[1746855314848,0.32298213,103250.0,103240.0,0.84036663]
[1746855315251,0.32298213,103250.0,103240.0,0.91177997]
[1746855315447,0.32298213,103250.0,103240.0,0.9590733]
[1746855315642,0.35628213,103250.0,103240.0,0.9590733]
[1746855315849,0.35628213,103250.0,103240.0,0.9600733]
[1746855316951,0.38658213,103250.0,103240.0,0.9600733]
[1746855317150,0.79467546,103250.0,103240.0,0.26386637]
[1746855317454,0.79467546,103250.0,103240.0,0.69133997]
[1746855317849,0.74738213,103250.0,103240.0,0.72453997]
[1746855318044,0.74738213,103250.0,103240.0,0.7718333]
[1746855318252,0.74738213,103250.0,103240.0,0.6058333]
[1746855318453,0.74738213,103250.0,103240.0,0.55853997]
[1746855319142,0.6486949,103250.0,103240.0,0.55853997]
[1746855320753,0.6486949,103250.0,103240.0,0.63061419]
[1746855321058,0.6486949,103250.0,103240.0,0.55853997]
[1746855323456,0.2878949,103250.0,103240.0,0.55853997]
[1746855323660,0.6486949,103250.0,103240.0,0.55853997]
[1746855324752,0.2878949,103250.0,103240.0,0.57338782]
[1746855324958,0.6486949,103250.0,103240.0,0.57338782]
[1746855326162,0.6486949,103250.0,103240.0,0.60648782]
[1746855327161,0.6486949,103250.0,103240.0,0.77248782]
[1746855327461,1.31156912,103250.0,103240.0,0.39559422]
[1746855327662,1.31156912,103250.0,103240.0,0.27871422]
[1746855328254,1.47756912,103250.0,103240.0,0.11271422]
[1746855329861,1.48056912,103250.0,103240.0,0.11171422]
[1746855330358,1.47956912,103250.0,103240.0,0.11171422]
[1746855330556,1.47956912,103250.0,103240.0,0.11271422]
[1746855330557,1.58125635,103250.0,103240.0,0.11271422]
[1746855330756,1.57925635,103250.0,103240.0,0.11271422]
[1746855330956,1.58325635,103250.0,103240.0,0.11271422]
[1746855332265,1.58325635,103250.0,103240.0,0.21271422]
[1746855333866,1.64809576,103250.0,103240.0,0.21271422]
[1746855334364,1.76525576,103250.0,103240.0,0.21271422]
[1746855334665,1.76525576,103250.0,103240.0,0.11584785]
[1746855334666,1.86211176,103250.0,103240.0,0.11584785]
[1746855335566,1.76525576,103250.0,103240.0,0.11584785]
[1746855341770,1.78782444,103250.0,103240.0,0.11584785]
[1746855343867,0.1937136,103240.0,103230.0,0.1311]
[1746855344062,1.0942565,103240.0,103230.0,0.23184967]
[1746855344367,1.2602565,103240.0,103230.0,0.32870666]
[1746855344569,1.2602565,103240.0,103230.0,0.36200666]
[1746855345167,1.2622565,103240.0,103230.0,0.36200666]
[1746855345366,1.2632565,103240.0,103230.0,0.36200666]
[1746855349869,1.2632565,103240.0,103230.0,0.42300666]
[1746855351275,1.0972565,103240.0,103230.0,0.42300666]
[1746855352075,1.2632565,103240.0,103230.0,0.42300666]
[1746855354179,1.0972565,103240.0,103230.0,0.42300666]
[1746855354381,1.27034536,103240.0,103230.0,0.42300666]
[1746855355076,1.43634536,103240.0,103230.0,0.42300666]
[1746855355881,1.42678314,103240.0,103230.0,0.42300666]
[1746855356185,1.26078314,103240.0,103230.0,0.42300666]
[1746855358480,1.28523557,103240.0,103230.0,0.42300666]
[1746855359482,1.29249557,103240.0,103230.0,0.42300666]
[1746855359984,1.29249557,103240.0,103230.0,0.30588666]
[1746855360987,1.22859557,103240.0,103230.0,0.30588666]
[1746855361285,0.41195267,103240.0,103230.0,0.66561906]
[1746855361585,0.14833907,103240.0,103230.0,1.28748851]
[1746855362687,0.34205267,103240.0,103230.0,1.28748851]
[1746855362886,0.34205267,103240.0,103230.0,1.28848851]
[1746855363589,0.14933907,103240.0,103230.0,2.45056851]
[1746855363776,0.02923907,103240.0,103230.0,2.79735704]
[1746855364487,0.22295267,103240.0,103230.0,2.79735704]
[1746855364691,0.02923907,103240.0,103230.0,2.72530205]
[1746855364987,0.02923907,103240.0,103230.0,2.69690205]
[1746855365590,0.02923907,103240.0,103230.0,2.76895704]
[1746855366895,0.00826,103240.0,103230.0,2.76895704]
[1746855375292,0.00826,103240.0,103230.0,2.51895704]
[1746855376193,0.2019736,103240.0,103230.0,2.33002205]
[1746855376491,0.2019736,103240.0,103230.0,2.44698205]
[1746855377594,0.2019736,103240.0,103230.0,2.35011405]
[1746855377784,0.2326736,103240.0,103230.0,2.44698205]
[1746855379295,0.2326736,103240.0,103230.0,2.35011405]
[1746855380194,0.03896,103240.0,103230.0,2.35011405]
[1746855380391,0.00826,103240.0,103230.0,2.42216904]
[1746855380695,0.0304,103250.0,103240.0,0.1937136]
[1746855380884,0.2240949,103250.0,103240.0,0.80726859]
[1746855381195,0.0611,103250.0,103240.0,0.97326859]
[1746855381391,0.2547949,103250.0,103240.0,1.07012558]
[1746855381995,0.2547949,103250.0,103240.0,1.07112558]
[1746855383694,0.2547949,103250.0,103240.0,1.09363985]
[1746855387091,0.2547949,103250.0,103240.0,0.99907059]
[1746855387298,0.2547949,103250.0,103240.0,1.16363522]
[1746855387497,0.2860949,103250.0,103240.0,1.16363522]
[1746855387686,0.2860949,103250.0,103240.0,0.85011985]
[1746855389806,0.2860949,103250.0,103240.0,0.62165522]
[1746855390000,0.2860949,103250.0,103240.0,0.73917522]
[1746855390196,0.2860949,103250.0,103240.0,0.73989522]
[1746855391206,0.2860949,103250.0,103240.0,0.57389522]
[1746855392711,0.2860949,103250.0,103240.0,0.33885522]
[1746855392906,0.2860949,103250.0,103240.0,0.57381522]
[1746855393107,0.69417953,103250.0,103240.0,0.21537699]
[1746855393310,0.69417953,103250.0,103240.0,0.52661059]
[1746855393715,0.69417953,103250.0,103240.0,0.29157059]
[1746855393920,0.77417953,103250.0,103240.0,0.16547699]
[1746855394214,0.94017953,103250.0,103240.0,0.16547699]
[1746855394413,0.94017953,103250.0,103240.0,0.04795699]
[1746855394717,0.94017953,103250.0,103240.0,0.11557699]
[1746855394902,0.94017953,103250.0,103240.0,0.21243398]
[1746855395715,0.96499168,103250.0,103240.0,0.21243398]
[1746855397313,1.06184768,103250.0,103240.0,0.21243398]
[1746855397710,1.06184768,103250.0,103240.0,0.09685699]
[1746855398925,1.22508746,103250.0,103240.0,0.09685699]
[1746855399420,1.45508746,103250.0,103240.0,0.09685699]
[1746855400215,1.09428746,103250.0,103240.0,0.09685699]
[1746855400411,1.81588746,103250.0,103240.0,0.09685699]
[1746855400611,0.1937136,103240.0,103230.0,0.23224967]
[1746855400817,0.69081038,103240.0,103230.0,0.23224967]
[1746855401018,0.69081038,103240.0,103230.0,0.32910666]
[1746855401218,0.85681038,103240.0,103230.0,0.32910666]
[1746855401917,0.85681038,103240.0,103230.0,0.33110666]
[1746855402520,0.88681038,103240.0,103230.0,0.33110666]
[1746855403019,0.88781038,103240.0,103230.0,0.33410666]
[1746855403809,1.21781038,103240.0,103230.0,0.21658666]
[1746855407018,1.31632099,103240.0,103230.0,0.21658666]
[1746855407919,1.10632099,103240.0,103230.0,0.21658666]
[1746855409719,1.13662099,103240.0,103230.0,0.21658666]
[1746855410222,1.06452421,103240.0,103230.0,0.21658666]
[1746855410409,1.13662099,103240.0,103230.0,0.21658666]
[1746855412418,0.77582099,103240.0,103230.0,0.21658666]
[1746855412724,1.49742099,103240.0,103230.0,0.21658666]
[1746855413825,1.49742099,103240.0,103230.0,0.27838666]
[1746855414625,1.49742099,103240.0,103230.0,0.21658666]
[1746855415528,1.57123279,103240.0,103230.0,0.21658666]
[1746855415732,1.59377751,103240.0,103230.0,0.21658666]
[1746855416126,1.42777751,103240.0,103230.0,0.21458666]
[1746855416427,1.42877751,103240.0,103230.0,0.21458666]
[1746855416828,1.42877751,103240.0,103230.0,0.21158666]
[1746855417129,1.59477751,103240.0,103230.0,0.21158666]
[1746855418430,1.52096571,103240.0,103230.0,0.21158666]
[1746855418631,1.52096571,103240.0,103230.0,0.24478666]
[1746855418830,1.47364496,103240.0,103230.0,0.27588666]
[1746855419033,1.47364496,103240.0,103230.0,0.30798666]
[1746855419225,1.30764496,103240.0,103230.0,0.30798666]
[1746855421327,1.35496571,103240.0,103230.0,0.30798666]
[1746855421835,1.56496571,103240.0,103230.0,0.27588666]
[1746855422035,1.56496571,103240.0,103230.0,0.24478666]
[1746855422333,1.56496571,103240.0,103230.0,0.04745297]
[1746855422523,0.1937324,103230.0,103220.0,0.1311]
[1746855422731,1.04475315,103230.0,103220.0,0.1]
[1746855423031,1.16255315,103230.0,103220.0,0.1]
[1746855423226,1.32855315,103230.0,103220.0,0.1]
[1746855423426,1.36901315,103230.0,103220.0,0.1]
[1746855424133,1.36901315,103230.0,103220.0,0.102]
[1746855424335,1.36901315,103230.0,103220.0,0.1338]
[1746855424536,1.36901315,103230.0,103220.0,0.1663]
[1746855425127,1.20301315,103230.0,103220.0,0.1663]
[1746855425636,0.84221315,103230.0,103220.0,0.1663]
[1746855425837,1.58861495,103230.0,103220.0,0.1663]
[1746855426027,1.58861495,103230.0,103220.0,0.1810384]
[1746855426429,1.75186495,103230.0,103220.0,0.1810384]
[1746855426735,1.75186495,103230.0,103220.0,0.2141384]
[1746855428535,1.4984424,103230.0,103220.0,0.31101415]
[1746855429436,1.2684424,103230.0,103220.0,0.31101415]
[1746855430037,1.34056495,103230.0,103220.0,0.31101415]
[1746855430243,1.40296495,103230.0,103220.0,0.31101415]
[1746855434141,1.8410875,103230.0,103220.0,0.21361415]
[1746855434345,1.76896495,103230.0,103220.0,0.1167384]
[1746855436246,1.91654697,103230.0,103220.0,0.1167384]
[1746855436445,1.84442442,103230.0,103220.0,0.1167384]
[1746855436745,1.91654697,103230.0,103220.0,0.1801384]
[1746855438162,1.75054697,103230.0,103220.0,0.1801384]
[1746855439160,1.75054697,103230.0,103220.0,0.2124384]
[1746855440055,1.62733974,103230.0,103220.0,0.2124384]
[1746855441960,0.90573974,103230.0,103220.0,0.2124384]
[1746855442152,1.62733974,103230.0,103220.0,0.2124384]
[1746855444049,1.62733974,103230.0,103220.0,1.40062389]
[1746855444050,0.54488479,103230.0,103220.0,1.40062389]
[1746855444250,0.72688274,103250.0,103240.0,0.1937136]
[1746855444561,0.30626828,103260.0,103250.0,0.1936949]
[1746855444757,0.30626828,103260.0,103250.0,0.62661745]
[1746855445057,0.30626828,103260.0,103250.0,0.85601745]
[1746855445363,0.30626828,103260.0,103250.0,0.95286506]
[1746855445861,0.30581447,103260.0,103250.0,0.95286506]
[1746855446064,0.49949057,103260.0,103250.0,0.95286506]
[1746855446562,0.50049057,103260.0,103250.0,0.95286506]
[1746855447364,0.30681447,103260.0,103250.0,0.95286506]
[1746855447554,0.50049057,103260.0,103250.0,0.95286506]
[1746855447866,0.30581447,103260.0,103250.0,0.95286506]
[1746855448058,0.30581447,103260.0,103250.0,0.95486506]
[1746855448257,0.004,103260.0,103250.0,0.95486506]
[1746855448456,0.1976761,103260.0,103250.0,0.88474251]
[1746855448862,0.004,103260.0,103250.0,0.88474251]
[1746855452068,0.004,103260.0,103250.0,0.95686506]
[1746855452251,0.004,103260.0,103250.0,0.88474251]
[1746855452456,0.004,103260.0,103250.0,0.95686506]
[1746855454167,0.004,103260.0,103250.0,0.59606506]
[1746855454359,0.004,103260.0,103250.0,0.95686506]
[1746855457467,0.0361,103260.0,103250.0,0.95686506]
[1746855465265,0.004,103260.0,103250.0,0.95686506]
[1746855465665,0.004,103260.0,103250.0,1.12583561]
[1746855465871,0.004,103260.0,103250.0,1.05371306]
[1746855468467,0.004,103260.0,103250.0,0.95686506]
[1746855471072,0.004,103260.0,103250.0,1.31766506]
[1746855473668,0.004,103260.0,103250.0,1.41451306]
[1746855475979,0.00726,103270.0,103260.0,0.1936761]
[1746855476273,0.20101,103270.0,103260.0,1.1950612]
[1746855476662,0.00726,103270.0,103260.0,1.38873943]
[1746855477076,0.00726,103270.0,103260.0,1.22273943]
[1746855477269,0.03946,103270.0,103260.0,1.22373943]
[1746855478983,0.03946,103270.0,103260.0,1.22673943]
[1746855479780,0.03946,103270.0,103260.0,1.22873943]
[1746855481178,0.03946,103270.0,103260.0,1.13189943]
[1746855481379,0.03946,103270.0,103260.0,1.22873943]
[1746855481569,0.03946,103270.0,103260.0,1.13189943]
[1746855482380,0.23321,103270.0,103260.0,1.13189943]
[1746855483970,0.03946,103270.0,103260.0,1.22873943]
[1746855484373,0.39927534,103290.0,103280.0,0.1936386]
[1746855484574,0.43027534,103290.0,103280.0,0.86036115]
[1746855484773,0.62402534,103290.0,103280.0,0.89356115]
[1746855484979,0.62402534,103290.0,103280.0,0.99039938]
[1746855485281,0.79002534,103290.0,103280.0,0.99039938]
[1746855485782,0.79002534,103290.0,103280.0,0.96552924]
[1746855485783,0.82142534,103290.0,103280.0,0.96552924]
[1746855486583,0.82142534,103290.0,103280.0,0.99602924]
[1746855489586,0.82142534,103290.0,103280.0,0.96552924]
[1746855490284,0.82142534,103290.0,103280.0,0.45763823]
[1746855490473,0.94867775,103290.0,103280.0,0.21371823]
[1746855491083,0.90142534,103290.0,103280.0,0.21371823]
[1746855491582,0.90142534,103290.0,103280.0,0.22811456]
[1746855493790,0.90142534,103290.0,103280.0,0.27536697]
[1746855494090,0.60701594,103290.0,103280.0,0.46900557]
[1746855494790,0.60701594,103290.0,103280.0,0.42175316]
[1746855494990,0.63165772,103290.0,103280.0,0.42175316]
[1746855495190,0.79765772,103290.0,103280.0,0.42175316]
[1746855501290,0.79765772,103290.0,103280.0,0.30487316]
[1746855501486,0.79765772,103290.0,103280.0,0.84765316]
[1746855501894,0.79765772,103290.0,103280.0,0.81575316]
[1746855503383,0.79765772,103290.0,103280.0,0.45495316]
[1746855504899,0.82229951,103290.0,103280.0,0.45495316]
[1746855505591,0.62854951,103290.0,103280.0,0.50220557]
[1746855505798,0.82229951,103290.0,103280.0,0.92410557]
[1746855508295,0.86231255,103290.0,103280.0,0.92410557]
[1746855509294,0.86231255,103290.0,103280.0,0.87685316]
[1746855517302,0.86231255,103290.0,103280.0,0.68321456]
[1746855517900,0.86231255,103290.0,103280.0,0.87685316]
[1746855519306,0.66856255,103290.0,103280.0,0.87685316]
[1746855519504,0.86231255,103290.0,103280.0,0.87685316]
[1746855522212,0.69631255,103290.0,103280.0,0.87685316]
[1746855523208,0.86231255,103290.0,103280.0,0.87685316]
[1746855523918,0.82229951,103290.0,103280.0,0.87685316]
[1746855525519,0.82229951,103290.0,103280.0,0.51605316]
[1746855525723,0.82229951,103290.0,103280.0,0.87685316]
[1746855527320,0.86955192,103290.0,103280.0,0.51605316]
[1746855528123,0.86955192,103290.0,103280.0,0.32241456]
[1746855528314,0.82229951,103290.0,103280.0,0.68321456]
[1746855529623,0.82229951,103290.0,103280.0,0.32241456]
[1746855529819,0.82229951,103290.0,103280.0,0.68321456]
[1746855532126,0.82229951,103290.0,103280.0,0.29211456]
[1746855532309,0.82229951,103290.0,103280.0,0.65291456]
[1746855532515,0.83229951,103290.0,103280.0,0.65291456]
[1746855533219,0.87231408,103290.0,103280.0,0.65291456]
[1746855536826,0.37231408,103290.0,103280.0,0.65291456]
[1746855537028,0.62159132,103290.0,103280.0,0.56803456]
[1746855537327,0.62159132,103290.0,103280.0,0.62243456]
[1746855537517,0.62159132,103290.0,103280.0,0.65463456]
[1746855540628,0.81536404,103290.0,103280.0,0.65463456]
[1746855540828,0.70551163,103290.0,103280.0,0.84827316]
[1746855541030,0.69551163,103290.0,103280.0,0.87857316]
[1746855542131,0.56696212,103290.0,103280.0,0.87857316]
[1746855542630,0.56696212,103290.0,103280.0,0.68493456]
[1746855543032,0.56696212,103290.0,103280.0,0.87857316]
[1746855543724,0.4681894,103290.0,103280.0,0.68493456]
[1746855547527,0.4681894,103290.0,103280.0,0.56773456]
[1746855547735,0.52544181,103290.0,103280.0,0.62211456]
[1746855547935,0.80994181,103290.0,103280.0,0.62211456]
[1746855548125,0.97594181,103290.0,103280.0,0.65381456]
[1746855552928,1.01595683,103290.0,103280.0,0.68671456]
[1746855559237,1.01595683,103290.0,103280.0,0.32591456]
[1746855559436,1.01595683,103290.0,103280.0,0.68671456]
[1746855559635,1.07470956,103290.0,103280.0,0.68671456]
[1746855561839,1.07470956,103290.0,103280.0,0.32591456]
[1746855562033,1.07470956,103290.0,103280.0,0.68671456]
[1746855565228,1.07470956,103290.0,103280.0,0.32591456]
[1746855568643,1.13941603,103290.0,103280.0,0.32591456]
[1746855570241,0.86166362,103290.0,103280.0,0.32591456]
[1746855570743,0.90891603,103290.0,103280.0,0.32591456]
[1746855572949,0.67891603,103290.0,103280.0,0.32591456]
[1746855573147,0.84491603,103290.0,103280.0,0.32591456]
[1746855582854,0.65116603,103290.0,103280.0,0.32591456]
[1746855583048,0.84491603,103290.0,103280.0,0.32591456]
[1746855583250,0.67891603,103290.0,103280.0,0.32591456]
[1746855584154,0.84491603,103290.0,103280.0,0.32591456]
[1746855585354,0.67891603,103290.0,103280.0,0.32591456]
[1746855587258,0.84491603,103290.0,103280.0,0.32591456]
[1746855587957,0.90891603,103290.0,103280.0,0.32591456]
[1746855589159,0.74291603,103290.0,103280.0,0.32591456]
[1746855592760,0.74291603,103290.0,103280.0,0.92760557]
[1746855592761,0.63166362,103290.0,103280.0,0.92760557]
[1746855593261,0.38950422,103290.0,103280.0,0.88035316]
[1746855593561,0.58325422,103290.0,103280.0,0.88035316]
[1746855596169,0.58325422,103290.0,103280.0,1.04635316]
[1746855596370,0.51855262,103290.0,103280.0,1.04635316]
[1746855596672,0.32480262,103290.0,103280.0,1.04635316]
[1746855597064,0.32480262,103290.0,103280.0,0.88035316]
[1746855602177,0.29240262,103290.0,103280.0,1.21040557]
[1746855602376,0.29966262,103290.0,103280.0,1.21040557]
[1746855605978,0.10603262,103290.0,103280.0,1.25765798]
[1746855606172,0.29965242,103290.0,103280.0,1.25765798]
[1746855606572,0.29965242,103290.0,103280.0,1.21040557]
[1746855609482,0.29965242,103290.0,103280.0,0.84960557]
[1746855609780,0.29965242,103290.0,103280.0,1.21040557]
[1746855610883,0.29965242,103290.0,103280.0,1.25765798]
[1746855611076,0.33095242,103290.0,103280.0,1.25765798]
[1746855611476,0.33095242,103290.0,103280.0,1.09360557]
[1746855611670,0.52470242,103290.0,103280.0,1.16311316]
[1746855611875,0.52470242,103290.0,103280.0,0.73583456]
[1746855612070,0.97475483,103290.0,103280.0,0.68659456]
[1746855612777,1.04876644,103290.0,103280.0,0.88023316]
[1746855613382,1.00151403,103290.0,103280.0,0.88023316]
[1746855615982,1.00151403,103290.0,103280.0,0.68659456]
[1746855616684,0.92750242,103290.0,103280.0,0.68659456]
[1746855617284,0.92750242,103290.0,103280.0,0.88023316]
[1746855618191,0.76150242,103290.0,103280.0,0.88023316]
[1746855621288,0.92750242,103290.0,103280.0,0.88023316]
[1746855623174,0.59150242,103290.0,103280.0,0.88023316]
[1746855628084,0.75750242,103290.0,103280.0,0.88023316]
[1746855629087,0.52470242,103290.0,103280.0,0.92748557]
[1746855629386,0.52470242,103290.0,103280.0,0.88023316]
[1746855630080,0.59874273,103290.0,103280.0,0.88023316]
[1746855632895,0.59874273,103290.0,103280.0,0.51943316]
[1746855633196,0.76474273,103290.0,103280.0,0.88023316]
[1746855633893,0.79834273,103290.0,103280.0,0.88023316]
[1746855634196,0.83234273,103290.0,103280.0,0.88023316]
[1746855634786,0.83234273,103290.0,103280.0,0.68659456]
[1746855634787,0.88959514,103290.0,103280.0,0.68659456]
[1746855634996,0.88959514,103290.0,103280.0,0.65369456]
[1746855635392,0.88959514,103290.0,103280.0,0.68669456]
[1746855636193,0.88959514,103290.0,103280.0,0.88033316]
[1746855637293,0.81555483,103290.0,103280.0,0.88033316]
[1746855639585,0.76830242,103290.0,103280.0,0.88033316]
[1746855640187,0.81555483,103290.0,103280.0,0.88033316]
[1746855640794,0.76830242,103290.0,103280.0,0.88033316]
[1746855640995,0.73430242,103290.0,103280.0,0.88033316]
[1746855641194,0.56830242,103290.0,103280.0,0.88033316]
[1746855645090,0.73430242,103290.0,103280.0,0.88033316]
[1746855645998,0.72430242,103290.0,103280.0,0.88033316]
[1746855646297,0.55830242,103290.0,103280.0,0.88033316]
[1746855646498,0.57195483,103290.0,103280.0,0.68669456]
[1746855646694,0.97525483,103290.0,103280.0,0.26111456]
[1746855647088,1.14125483,103290.0,103280.0,0.14443456]
[1746855649199,1.14125483,103290.0,103280.0,0.17643456]
[1746855649797,1.50205483,103290.0,103280.0,0.17643456]
[1746855651802,1.56675772,103290.0,103280.0,0.17643456]
[1746855654699,1.56675772,103290.0,103280.0,0.14443456]
[1746855656602,1.56675772,103290.0,103280.0,0.17793456]
[1746855657202,1.56675772,103290.0,103280.0,0.14443456]
[1746855658205,1.56675772,103290.0,103280.0,0.17743456]
[1746855660300,1.56675772,103290.0,103280.0,0.20933456]
[1746855660809,1.22675772,103290.0,103280.0,0.20933456]
[1746855661308,0.53035531,103290.0,103280.0,0.81102557]
[1746855662108,0.36435531,103290.0,103280.0,0.81102557]
[1746855662501,0.39725531,103290.0,103280.0,0.76377316]
[1746855662897,0.39725531,103290.0,103280.0,0.40297316]
[1746855663909,0.3324502,103290.0,103280.0,0.40297316]
[1746855665010,0.3324502,103290.0,103280.0,0.81102557]
[1746855665313,0.2995502,103290.0,103280.0,0.81102557]
[1746855666109,0.2995502,103290.0,103280.0,0.97702557]
[1746855667110,0.2995502,103290.0,103280.0,1.09362557]
[1746855667302,0.27488484,103290.0,103280.0,1.09362557]
[1746855668014,0.27488484,103290.0,103280.0,1.04637316]
[1746855668215,0.27488484,103290.0,103280.0,0.92762557]
[1746855669109,0.27488484,103290.0,103280.0,1.09362557]
[1746855669611,0.27488484,103290.0,103280.0,1.04637316]
[1746855669910,0.27488484,103290.0,103280.0,1.09362557]
[1746855670112,0.27488484,103290.0,103280.0,0.92762557]
[1746855670713,0.37355524,103290.0,103280.0,0.92762557]
[1746855672314,0.40555524,103290.0,103280.0,0.92762557]
[1746855676309,0.59930524,103290.0,103280.0,0.92762557]
[1746855678214,0.59930524,103290.0,103280.0,0.73398697]
[1746855678721,0.59930524,103290.0,103280.0,0.68673456]
[1746855678921,0.50063484,103290.0,103280.0,0.68673456]
[1746855681020,0.50063484,103290.0,103280.0,0.88037316]
[1746855682019,0.59930524,103290.0,103280.0,0.88037316]
[1746855683926,0.59930524,103290.0,103280.0,0.51957316]
[1746855684314,0.59930524,103290.0,103280.0,0.88037316]
[1746855684523,0.59930524,103290.0,103280.0,0.92762557]
[1746855685823,0.5253002,103290.0,103280.0,0.92762557]
[1746855689723,0.5253002,103290.0,103280.0,1.04422557]
[1746855691827,0.5253002,103290.0,103280.0,0.99697316]
[1746855692024,0.5253002,103290.0,103280.0,1.04422557]
[1746855693930,0.5253002,103290.0,103280.0,0.80333456]
[1746855694127,0.5932002,103290.0,103280.0,0.99697316]
[1746855695633,0.5932002,103290.0,103280.0,0.80333456]
[1746855696134,0.7592002,103290.0,103280.0,0.80333456]
[1746855697136,0.5932002,103290.0,103280.0,0.80333456]
[1746855698035,0.5932002,103290.0,103280.0,0.88037316]
[1746855698235,0.7592002,103290.0,103280.0,0.99689316]